bitfinex-derivatives/quotes_ETHF0:USTF0_20251216
["timestamp","ask_amount","ask_price","bid_price","bid_amount"]
[1765914833773,0.0972,2951.4,2951.3,0.00507666]
[1765914834678,0.0972,2951.4,2951.3,0.00935086]
[1765914835280,40.8,2951.6,2951.5,1.4837]
[1765914835468,56.691,2951.6,2951.5,0.5766]
[1765914835673,0.0566,2951.4,2951.3,0.00935086]
[1765914836773,40.8,2951.6,2951.5,0.5766]
[1765914836969,56.693,2951.6,2951.5,2.3735]
[1765914837174,56.693,2951.6,2951.5,0.5766]
[1765914837777,0.0204,2951.4,2951.3,0.00935086]
[1765914839279,0.3299,2951.1,2951.0,0.24911818]
[1765914839475,0.3299,2951.1,2950.5,0.5766]
[1765914839476,0.3197,2950.1,2950.0,2.3735]
[1765914839673,16.2157,2950.2,2950.1,1.7969]
[1765914840273,16.53975494,2950.2,2950.1,0.91075377]
[1765914841176,16.53975494,2950.2,2950.1,0.00365377]
[1765914842075,16.53975494,2950.2,2950.1,1.80055377]
[1765914842280,16.22005494,2950.2,2950.1,1.80055377]
[1765914842878,0.00435494,2950.2,2950.1,1.80055377]
[1765914843794,0.50257,2950.9,2950.8,1.6576]
[1765914843995,16.73367,2950.9,2950.8,1.6576]
[1765914844394,57.53367,2950.9,2950.8,0.8428]
[1765914844591,0.3331,2950.6,2950.5,2.1976]
[1765914844790,0.33610907,2950.6,2950.5,2.1976]
[1765914846088,0.66920907,2950.6,2950.5,0.54]
[1765914846292,0.66920907,2950.6,2950.5,2.1976]
[1765914847400,0.30990907,2950.6,2950.5,2.1976]
[1765914847601,16.51580907,2950.6,2950.5,0.54]
[1765914848200,16.51580907,2950.6,2950.5,1.3828]
[1765914848900,16.51580907,2950.6,2950.5,2.1976]
[1765914850588,15.90200907,2950.6,2950.5,2.1976]
[1765914850792,16.18230907,2950.6,2950.5,2.1976]
[1765914851295,15.90200907,2950.6,2950.5,2.1976]
[1765914851801,15.90300907,2950.6,2950.5,2.1976]
[1765914852100,0.00300907,2950.6,2950.5,2.1976]
[1765914852308,15.90300907,2950.6,2950.5,2.1976]
[1765914852601,0.00300907,2950.6,2950.5,2.1976]
[1765914853698,0.68344,2951.5,2951.4,0.8428]
[1765914853896,0.257,2951.1,2951.0,2.1976]
[1765914854098,45.486,2951.1,2951.0,2.1976]
[1765914854707,4.68957857,2951.1,2951.0,2.1976]
[1765914857307,16.16157857,2951.1,2951.0,2.1976]
[1765914858007,0.22277666,2951.8,2951.7,1.6576]
[1765914858207,0.44047666,2951.8,2951.7,1.6576]
[1765914858407,0.44047666,2951.8,2951.7,0.8428]
[1765914858907,0.44320654,2951.8,2951.7,0.8428]
[1765914859508,0.44320654,2951.8,2951.7,1.6576]
[1765914860306,0.44320654,2951.8,2951.5,0.00338441]
[1765914860307,0.4022,2951.6,2951.5,0.00338441]
[1765914860513,0.4022,2951.6,2951.5,0.54338441]
[1765914860898,41.2022,2951.6,2951.5,0.54338441]
[1765914861410,41.2022,2951.6,2951.5,1.38618441]
[1765914862011,57.1012,2951.6,2951.5,1.38618441]
[1765914862909,40.8,2951.6,2951.5,2.20098441]
[1765914863308,0.1841,2951.6,2951.5,2.20098441]
[1765914863909,40.8,2951.7,2951.6,0.8428]
[1765914864107,40.8,2951.7,2951.6,1.6576]
[1765914865114,40.8,2951.7,2951.6,0.8428]
[1765914865302,40.8,2951.7,2951.6,1.6576]
[1765914865506,0.3176,2951.6,2951.5,0.54338441]
[1765914867310,0.3176,2951.6,2951.5,1.38618441]
[1765914867514,16.0568,2951.6,2951.5,2.20098441]
[1765914868807,16.1988,2951.6,2951.5,0.54338441]
[1765914869207,16.1988,2951.6,2951.5,2.20098441]
[1765914870619,16.1988,2951.6,2951.5,1.38618441]
[1765914871113,16.1988,2951.6,2951.5,0.54338441]
[1765914871815,0.3008,2951.6,2951.5,0.54338441]
[1765914872016,16.1978,2951.6,2951.5,2.20098441]
[1765914872819,16.1978,2951.6,2951.5,1.38618441]
[1765914873417,15.897,2951.6,2951.5,2.20098441]
[1765914873617,15.897,2951.7,2951.6,0.8428]
[1765914873817,0.1684,2951.6,2951.5,0.54338441]
[1765914875319,40.8,2951.7,2951.6,1.5584]
[1765914875520,56.696,2951.7,2951.6,1.5584]
[1765914876019,0.1522,2951.6,2951.5,1.29998441]
[1765914876322,1.52968986,2951.6,2951.5,0.00338441]
[1765914876523,1.52968986,2951.6,2951.5,0.47618441]
[1765914880223,56.696,2951.7,2951.6,1.5584]
[1765914880628,0.0718,2951.6,2951.5,0.00338441]
[1765914880823,1.44928986,2951.6,2951.5,0.00338441]
[1765914881329,0.0558,2951.1,2951.0,0.54]
[1765914881627,0.0558,2950.6,2950.5,0.54]
[1765914881923,15.895,2951.1,2951.0,2.0312]
[1765914882218,1.37748986,2951.4,2951.0,2.0312]
[1765914882219,1.39798986,2951.4,2951.3,0.7566]
[1765914882423,15.9155,2951.4,2951.3,1.5584]
[1765914883121,0.0205,2951.4,2951.3,1.5584]
[1765914883330,15.9165,2951.4,2951.3,1.5584]
[1765914883623,17.31448986,2951.4,2951.3,1.5584]
[1765914883824,17.31448986,2951.4,2951.3,0.7566]
[1765914884018,0.0154,2951.1,2951.0,0.4728]
[1765914884218,0.0154,2951.1,2951.0,2.0312]
[1765914884426,17.30428986,2951.4,2951.3,0.7566]
[1765914884626,0.0308,2951.1,2951.0,0.4728]
[1765914884826,17.30328986,2951.1,2951.0,1.2294]
[1765914885133,17.28788986,2951.1,2951.0,2.0312]
[1765914885324,15.9104,2951.1,2951.0,2.0312]
[1765914885722,15.9258,2951.1,2951.0,2.0312]
[1765914886024,15.9258,2951.1,2951.0,0.4728]
[1765914886422,15.9258,2951.1,2951.0,1.2294]
[1765914886627,0.0308,2951.1,2951.0,2.0312]
[1765914886828,15.9258,2951.1,2951.0,2.0312]
[1765914887027,15.9104,2951.1,2951.0,2.0312]
[1765914887229,0.0154,2951.1,2951.0,2.0312]
[1765914888232,15.9114,2951.4,2951.3,1.5584]
[1765914888434,40.8,2951.7,2951.6,0.7566]
[1765914888631,56.695,2951.7,2951.6,1.5584]
[1765914889536,0.0154,2951.1,2951.0,2.0312]
[1765914889735,0.0308,2951.1,2951.0,2.0312]
[1765914889935,15.895,2951.3,2950.4,4.18560548]
[1765914889936,0.0154,2950.6,2950.5,2.0984]
[1765914890537,15.9258,2950.8,2950.7,1.5584]
[1765914891036,0.0308,2950.6,2950.5,2.0984]
[1765914891234,0.0308,2950.6,2950.5,0.54]
[1765914891540,0.0308,2950.6,2950.5,1.2966]
[1765914891731,0.0308,2950.6,2950.5,2.0984]
[1765914891930,0.0154,2950.6,2950.5,2.0984]
[1765914893640,0.0308,2950.6,2950.5,2.0984]
[1765914893835,0.0308,2950.6,2950.5,1.2966]
[1765914894837,0.0308,2950.6,2950.1,0.00365377]
[1765914894838,0.0308,2950.2,2950.1,0.76025377]
[1765914895036,11.9754,2950.4,2950.3,1.5584]
[1765914895430,40.8,2950.4,2950.3,1.5584]
[1765914895943,7.159,2950.5,2950.4,1.5584]
[1765914896140,7.1744,2950.5,2950.4,1.5584]
[1765914896439,47.9744,2950.5,2950.4,1.5584]
[1765914896634,40.8154,2950.5,2950.4,1.5584]
[1765914896838,0.16948,2950.8,2950.1,0.00365377]
[1765914896839,15.896,2950.6,2950.5,2.0312]
[1765914897038,15.9114,2950.6,2950.5,2.0312]
[1765914897233,0.18488,2950.8,2950.7,1.5584]
[1765914897442,40.96948,2950.8,2950.7,1.5584]
[1765914899448,56.86548,2950.8,2950.7,1.5584]
[1765914899638,40.96948,2950.8,2950.7,1.5584]
[1765914899941,2.06727972,2951.5,2950.8,1.5584]
[1765914899942,15.9114,2950.9,2950.8,1.5584]
[1765914900643,15.9268,2950.9,2950.8,1.5584]
[1765914901337,15.9114,2950.9,2950.8,1.5584]
[1765914901538,0.0154,2950.9,2950.8,1.5584]
[1765914901741,0.0154,2950.6,2950.5,2.0312]
[1765914902047,0.0308,2951.0,2950.9,1.5584]
[1765914902238,15.9268,2951.0,2950.9,1.5584]
[1765914902645,15.9268,2951.0,2950.5,0.4728]
[1765914902850,0.0308,2950.6,2950.5,2.0312]
[1765914903044,0.0308,2950.6,2950.5,0.4728]
[1765914903239,0.20027,2950.9,2950.8,0.7566]
[1765914903440,0.0154,2950.6,2950.5,2.0312]
[1765914903641,16.06547,2950.9,2950.1,1.56205377]
[1765914903642,0.0154,2950.2,2950.1,1.56205377]
[1765914903837,0.0308,2950.2,2950.1,1.56205377]
[1765914904145,0.0308,2950.2,2950.1,0.00365377]
[1765914904949,0.0308,2950.2,2950.1,1.55875377]
[1765914905253,15.9278,2950.2,2950.1,1.55875377]
[1765914905451,15.9119,2950.2,2950.1,1.55875377]
[1765914906050,15.9278,2950.2,2950.1,0.79115377]
[1765914906252,15.9119,2950.2,2950.1,1.55875377]
[1765914906754,0.0159,2950.2,2950.1,1.55875377]
[1765914907552,0.0318,2950.2,2950.1,0.79115377]
[1765914907854,0.0318,2950.2,2950.1,0.00365377]
[1765914909539,0.20131,2950.2,2950.1,0.00365377]
[1765914914451,0.0318,2949.6,2949.5,0.4728]
[1765914914752,0.0318,2949.1,2949.0,1.2603]
[1765914915455,0.03533893,2949.1,2949.0,1.26409936]
[1765914915847,0.03533893,2949.1,2949.0,0.47659936]
[1765914916253,0.03533893,2949.1,2949.0,0.00379936]
[1765914917556,0.20491893,2949.1,2949.0,0.00379936]
[1765914917856,16.10291893,2949.1,2949.0,0.00379936]
[1765914918654,16.10291893,2949.1,2949.0,0.44599936]
[1765914919565,16.10391893,2949.1,2949.0,2.00109936]
[1765914920058,16.10391893,2949.1,2949.0,1.23349936]
[1765914920356,16.10391893,2949.1,2949.0,2.00109936]
[1765914920757,16.10391893,2949.1,2949.0,1.23349936]
[1765914921061,16.10491893,2949.1,2949.0,0.44599936]
[1765914921555,16.10491893,2949.1,2948.0,0.4422]
[1765914921757,0.0242,2948.6,2948.5,0.4422]
[1765914922261,0.0242,2948.1,2948.0,1.2297]
[1765914922464,0.16961,2948.5,2947.5,0.4422]
[1765914922465,0.0121,2947.6,2947.5,1.9973]
[1765914922656,0.0121,2947.6,2947.5,2.00061111]
[1765914924261,40.8,2947.7,2947.6,1.5551]
[1765914924856,0.00508551,2947.8,2947.7,1.5551]
[1765914925363,0.1696,2948.7,2947.7,1.5551]
[1765914925560,0.1696,2948.7,2947.5,0.44551111]
[1765914925561,0.0172,2948.6,2948.5,1.9973]
[1765914925757,1.1292,2948.6,2948.5,1.9973]
[1765914925957,41.9292,2948.6,2948.5,1.9973]
[1765914926159,40.8172,2948.6,2948.5,1.9973]
[1765914926357,0.0344,2948.1,2948.0,0.4422]
[1765914926664,0.0344,2947.6,2947.5,0.44551111]
[1765914926857,15.9374,2947.6,2947.5,0.44551111]
[1765914927760,56.7374,2947.6,2947.5,0.44551111]
[1765914928066,56.703,2947.6,2947.5,0.44551111]
[1765914928460,56.87266,2947.6,2947.5,0.44551111]
[1765914928860,56.87366,2947.6,2947.5,1.23301111]
[1765914929356,56.87366,2947.6,2947.5,0.44551111]
[1765914929666,0.0172,2947.1,2947.0,1.2297]
[1765914929966,15.9222,2947.1,2947.0,1.9973]
[1765914930172,0.16967,2947.5,2947.0,1.9973]
[1765914930363,15.905,2947.1,2947.0,1.9973]
[1765914930556,0.16967,2947.5,2947.0,1.9973]
[1765914930762,15.9222,2947.4,2947.3,0.7875]
[1765914930963,0.0172,2947.1,2947.0,2.00144913]
[1765914931567,15.905,2947.4,2947.0,2.00144913]
[1765914931863,15.906,2947.3,2947.2,1.5551]
[1765914932067,40.8,2947.6,2947.5,1.9973]
[1765914932367,56.706,2947.6,2947.5,0.4422]
[1765914932558,56.87566,2947.6,2947.5,0.4422]
[1765914933960,0.0349,2947.1,2947.0,0.44634913]
[1765914934158,15.9419,2947.1,2947.0,0.44634913]
[1765914937571,0.16968,2947.3,2947.2,0.7467]
[1765914937768,16.07868,2947.3,2947.2,1.531]
[1765914937975,16.09648,2947.3,2947.2,1.531]
[1765914938166,0.0178,2947.1,2947.0,1.97734913]
[1765914938670,0.0356,2947.1,2947.0,1.97734913]
[1765914938979,0.0178,2947.1,2947.0,1.97734913]
[1765914939168,16.09648,2947.3,2947.2,0.7467]
[1765914939565,0.0178,2947.3,2947.2,1.531]
[1765914939766,40.8,2947.6,2947.5,2.0016]
[1765914939969,56.71,2947.6,2947.5,2.0016]
[1765914940580,1.82348802,2948.8,2948.0,1.2173]
[1765914940581,0.0356,2948.1,2948.0,1.2173]
[1765914940776,15.9456,2948.1,2948.0,0.4706]
[1765914940976,56.7456,2948.1,2948.0,0.4706]
[1765914941568,0.0178,2947.6,2947.5,2.0016]
[1765914941767,15.9278,2947.6,2947.5,2.0016]
[1765914942173,40.8,2948.1,2948.0,0.4706]
[1765914942486,0.0356,2947.6,2947.5,0.4706]
[1765914942672,15.9456,2947.6,2947.5,0.4706]
[1765914944173,0.16966,2947.7,2947.0,1.97734913]
[1765914944375,15.9456,2947.6,2947.5,0.4706]
[1765914945282,16.11526,2947.6,2947.5,0.4706]
[1765914946281,16.11526,2947.6,2947.5,1.2173]
[1765914946775,0.16966,2947.6,2947.5,2.0016]
[1765914946981,40.8,2948.1,2948.0,0.4706]
[1765914947176,58.02630153,2948.1,2948.0,0.4706]
[1765914947583,42.28593153,2948.1,2948.0,2.0016]
[1765914947778,57.73566999,2948.1,2948.0,2.0016]
[1765914948184,41.82566999,2948.1,2948.0,2.0016]
[1765914948481,56.87963,2948.1,2948.0,2.0016]
[1765914948971,56.87963,2948.1,2948.0,0.4706]
[1765914949376,56.88063,2948.1,2948.0,0.4706]
[1765914949576,56.88063,2948.1,2948.0,1.2173]
[1765914949772,40.96963,2948.1,2948.0,1.2173]
[1765914949977,56.87963,2948.1,2948.0,1.2173]
[1765914950381,57.73734664,2948.1,2948.0,1.2173]
[1765914951384,41.82734664,2948.1,2948.0,1.2173]
[1765914951585,57.73734664,2948.1,2948.0,2.0016]
[1765914952586,40.8,2948.1,2948.0,2.0016]
[1765914952987,0.0356,2947.6,2947.5,0.4706]
[1765914953293,0.5124,2947.1,2947.0,1.19304913]
[1765914953492,16.1662,2947.1,2947.0,1.97734913]
[1765914954089,16.4224,2947.1,2947.0,0.44634913]
[1765914954291,16.4224,2947.1,2947.0,1.19304913]
[1765914955996,16.4224,2947.1,2947.0,0.44634913]
[1765914956390,0.2562,2947.1,2947.0,1.97734913]
[1765914956593,16.1662,2947.1,2947.0,1.97734913]
[1765914957990,0.2562,2947.1,2947.0,1.97734913]
[1765914958190,0.2562,2947.3,2947.2,1.531]
[1765914958398,16.1672,2947.3,2947.2,1.531]
[1765914958599,0.85961727,2947.3,2947.2,1.531]
[1765914958801,0.5124,2947.6,2947.5,0.4706]
[1765914959097,16.59306,2947.6,2947.5,0.4706]
[1765914959294,17.90731946,2947.6,2947.5,0.4706]
[1765914960293,1.99631946,2947.6,2947.5,0.4706]
[1765914960492,0.2562,2947.1,2947.0,0.44634913]
[1765914960696,0.5124,2947.1,2947.0,1.19304913]
[1765914961294,0.5124,2947.1,2947.0,1.97734913]
[1765914961594,0.2562,2947.1,2947.0,1.97734913]
[1765914962000,16.1672,2947.1,2947.0,1.97734913]
[1765914964604,15.911,2947.1,2947.0,1.97734913]
[1765914966407,16.425,2947.1,2947.0,0.44634913]
[1765914967404,16.425,2947.1,2947.0,1.95164913]
[1765914967605,0.16968,2947.3,2947.2,1.5053]
[1765914967999,15.911,2947.6,2947.3,1.5053]
[1765914968199,16.425,2947.6,2947.5,1.9527]
[1765914969107,16.426,2947.6,2947.5,1.9527]
[1765914969906,16.426,2947.6,2947.5,0.4474]
[1765914970108,0.257,2947.1,2947.0,1.95164913]
[1765914970309,0.514,2947.6,2947.5,0.4474]
[1765914970508,16.426,2947.6,2947.5,0.4474]
[1765914973407,0.514,2947.1,2947.0,1.95164913]
[1765914973604,0.514,2947.1,2947.0,1.21144913]
[1765914973910,0.514,2947.1,2947.0,0.44634913]
[1765914975110,0.514,2947.1,2947.0,1.21144913]
[1765914976005,0.514,2947.1,2947.0,0.00414913]
[1765914976210,0.514,2947.1,2947.0,0.45154913]
[1765914976605,0.514,2947.1,2947.0,1.21664913]
[1765914976809,41.314,2947.1,2947.0,1.21664913]
[1765914977607,40.8,2947.1,2947.0,1.95684913]
[1765914977913,0.16969,2947.2,2947.1,1.5053]
[1765914978805,8.866,2947.3,2947.0,0.45154913]
[1765914978806,0.68369,2947.1,2947.0,0.45154913]
[1765914979006,0.68369,2947.1,2947.0,1.21664913]
[1765914979212,0.42669,2947.1,2947.0,1.95684913]
[1765914979414,0.16969,2947.1,2947.0,1.95684913]
[1765914981202,0.16966,2947.6,2947.0,1.19174913]
[1765914981406,0.68366,2947.6,2947.5,1.9527]
[1765914981608,16.59466,2947.6,2947.5,1.9527]
[1765914982009,16.59466,2947.6,2947.5,1.2125]
[1765914982206,16.59466,2947.6,2947.5,0.4474]
[1765914983311,0.16968,2947.3,2947.2,1.5053]
[1765914983716,16.168,2947.5,2947.4,1.5053]
[1765914984311,0.257,2947.6,2947.5,1.9527]
[1765914986515,0.514,2947.6,2947.5,0.4474]
[1765914986816,0.257,2947.6,2947.5,1.9527]
[1765914987616,0.42662,2948.3,2948.2,0.7651]
[1765914987816,2.66362,2948.3,2948.2,1.5053]
[1765914988110,0.257,2948.1,2948.0,1.9527]
[1765914988317,16.167,2948.1,2948.0,1.9527]
[1765914988915,0.68362,2948.3,2948.2,1.5053]
[1765914989114,16.59362,2948.3,2948.2,1.5053]
[1765914991315,40.8,2948.7,2948.6,1.5053]
[1765914991520,0.6836,2948.6,2948.5,0.4474]
[1765914991713,0.514,2948.1,2948.0,1.9527]
[1765914991913,0.257,2948.1,2948.0,1.9527]
[1765914993823,0.514,2948.1,2948.0,1.9527]
[1765914994011,0.68363,2948.1,2948.0,1.2125]
[1765914994214,0.68363,2948.1,2948.0,0.4474]
[1765914995115,9.557,2948.3,2947.5,0.4474]
[1765914995116,0.517,2947.6,2947.5,0.4474]
[1765914995315,0.517,2947.6,2947.5,1.9577]
[1765914997526,16.1655,2947.7,2947.6,1.5103]
[1765914998325,0.2585,2947.7,2947.6,1.5103]
[1765914998526,16.1655,2947.7,2947.6,1.5103]
[1765914998732,0.517,2947.6,2947.5,0.4474]
[1765915001325,15.907,2947.7,2946.6,10.169]
[1765915001326,0.517,2947.1,2947.0,1.96184913]
[1765915001528,0.2585,2947.1,2947.0,1.96184913]
[1765915002029,0.517,2947.1,2947.0,1.96184913]
[1765915002330,0.2585,2947.1,2947.0,1.96184913]
[1765915002527,9.068,2947.3,2947.2,1.5103]
[1765915003229,0.517,2947.1,2947.0,1.96184913]
[1765915003428,0.2585,2947.1,2947.0,1.96184913]
[1765915003833,0.517,2947.1,2947.0,0.45154913]
[1765915005031,0.68669,2947.1,2947.0,0.00414913]
[1765915007534,0.517,2946.6,2946.5,0.4474]
[1765915007724,16.425,2946.6,2946.5,0.4474]
[1765915008227,0.2585,2945.2,2945.1,4.5000182]
[1765915008423,0.16976,2945.9,2945.5,0.4657]
[1765915008628,12.4655,2945.8,2945.7,1.5103]
[1765915008827,53.2655,2945.8,2945.7,1.5103]
[1765915009431,41.0585,2945.8,2945.7,1.5103]
[1765915009731,16.1675,2945.8,2945.7,1.5103]
[1765915010735,0.2585,2945.8,2945.7,1.5103]
[1765915010927,16.1685,2945.8,2945.7,1.5103]
[1765915011332,0.2585,2945.6,2945.5,0.4657]
[1765915011635,16.1685,2945.8,2945.7,1.5103]
[1765915012133,0.2585,2945.8,2945.7,1.5103]
[1765915012327,15.911,2945.8,2945.7,1.5103]
[1765915013436,16.1695,2945.8,2945.7,1.5103]
[1765915013736,16.17353156,2945.9,2945.8,1.5103]
[1765915013934,0.00403156,2945.9,2945.8,1.5103]
[1765915014234,3.156e-05,2945.9,2945.8,7.5103]
[1765915019138,3.156e-05,2945.9,2945.8,1.5103]
[1765915021644,0.26253156,2945.9,2945.8,0.7323]
[1765915021839,0.2625,2945.6,2945.5,0.4657]
[1765915022047,16.438,2945.6,2945.5,0.4657]
[1765915022234,3.156e-05,2945.9,2945.5,6.4657]
[1765915022538,3.156e-05,2945.9,2945.5,0.4657]
[1765915022742,0.2625,2946.6,2946.5,1.976]
[1765915022943,16.438,2946.6,2946.5,1.976]
[1765915023143,16.438,2946.6,2946.5,1.198]
[1765915023344,16.438,2946.6,2946.5,0.4657]
[1765915023843,0.52780544,2946.6,2946.5,0.4657]
[1765915024040,16.44080544,2946.6,2946.5,0.4657]
[1765915025843,0.5244,2946.1,2946.0,1.198]
[1765915026047,0.5244,2946.1,2946.0,0.4657]
[1765915026249,0.5239,2945.6,2945.5,0.4657]
[1765915026450,16.4369,2945.6,2945.5,0.4657]
[1765915026849,16.4369,2945.6,2945.5,1.2153]
[1765915028448,16.4369,2945.6,2945.5,1.9782]
[1765915028751,16.175,2945.6,2945.5,1.9782]
[1765915029451,15.914,2945.6,2945.5,1.9782]
[1765915029845,16.176,2945.6,2945.5,1.9782]
[1765915031152,16.4379,2945.6,2945.5,1.9782]
[1765915031951,16.4389,2945.6,2945.5,1.9782]
[1765915034056,0.262,2946.1,2946.0,1.9563]
[1765915034259,1.55636956,2946.6,2946.5,0.4438]
[1765915034450,0.69642544,2946.6,2946.5,0.4438]
[1765915034651,16.61142544,2946.6,2946.5,1.9563]
[1765915034846,0.5239,2946.1,2946.0,1.9563]
[1765915035048,0.5239,2946.1,2946.0,1.1934]
[1765915035252,0.5239,2946.1,2946.0,0.4438]
[1765915035452,0.5239,2946.1,2946.0,1.1934]
[1765915035754,16.4389,2946.1,2946.0,1.9563]
[1765915036450,0.43173,2946.5,2946.4,1.5125]
[1765915036662,0.43173,2946.5,2946.0,0.4438]
[1765915036663,16.60863,2946.5,2946.0,0.4438]
[1765915037456,0.262,2946.1,2946.0,1.9563]
[1765915038459,16.08473,2946.5,2946.0,1.9563]
[1765915038852,16.60863,2946.5,2946.4,0.7496]
[1765915039662,0.16973,2946.5,2946.4,1.5125]
[1765915039866,16.34573,2946.5,2946.4,1.5125]
[1765915040170,16.60763,2946.5,2946.4,1.5125]
[1765915041664,0.26480544,2946.6,2946.5,1.9563]
[1765915041857,16.17880544,2946.6,2946.5,1.9563]
[1765915042059,16.44070544,2946.6,2946.5,1.9563]
[1765915042563,0.26480544,2946.6,2946.5,1.9563]
[1765915042862,0.00280544,2946.6,2946.5,1.9563]
[1765915043659,0.52670544,2946.6,2946.5,1.9563]
[1765915044065,0.52670544,2946.6,2946.5,1.1934]
[1765915044563,0.52670544,2946.6,2946.5,1.9563]
[1765915047459,0.00280544,2946.6,2946.5,1.9563]
[1765915047857,0.26480544,2946.6,2946.5,1.9563]
[1765915048354,0.00280544,2946.6,2946.5,1.9563]
[1765915048757,0.26480544,2946.6,2946.5,1.9563]
[1765915049171,0.00280544,2946.6,2946.5,1.9563]
[1765915050670,0.26480544,2946.6,2946.5,1.9563]
[1765915051372,0.00280544,2946.6,2946.5,1.9563]
[1765915052070,0.26480544,2946.6,2946.5,1.9563]
[1765915053074,0.00280544,2946.6,2946.5,1.9563]
[1765915054562,0.26550544,2946.6,2946.5,1.9563]
[1765915054757,0.00280544,2946.6,2946.5,1.9563]
[1765915058076,0.26440544,2946.6,2946.5,1.9563]
[1765915059075,0.00280544,2946.6,2946.5,1.9563]
[1765915060168,0.26440544,2946.6,2946.5,1.9563]
[1765915062274,0.00280544,2946.6,2946.5,1.9563]
[1765915064669,0.52600544,2946.6,2946.5,1.9563]
[1765915064874,0.00280544,2946.6,2946.5,1.9563]
[1765915065782,0.26440544,2946.6,2946.5,1.9563]
[1765915067680,0.00280544,2946.6,2946.5,1.9563]
[1765915068286,0.26440544,2946.6,2946.5,1.9563]
[1765915068981,0.00280544,2946.6,2946.5,1.9563]
[1765915085002,0.43508,2947.4,2947.3,1.522]
[1765915085198,0.70558,2947.4,2947.3,1.522]
[1765915085405,13.99168,2947.4,2947.3,1.522]
[1765915085897,14.26218,2947.4,2947.3,1.522]
[1765915086198,15.90790014,2947.4,2947.3,1.52617048]
[1765915086400,0.00290014,2947.4,2947.3,1.52617048]
[1765915086600,13.13390014,2947.4,2947.3,1.52617048]
[1765915086800,13.40440014,2947.4,2947.3,1.52617048]
[1765915087001,13.67490014,2947.4,2947.3,0.00417048]
[1765915087600,13.67490014,2947.4,2947.3,0.75947048]
[1765915087805,13.67490014,2947.4,2947.3,1.52617048]
[1765915088207,0.541,2947.2,2947.1,0.00508551]
[1765915088406,0.2705,2946.6,2946.5,1.9658]
[1765915088906,15.904,2946.7,2946.6,1.522]
[1765915089313,1.65279211,2947.0,2946.9,1.522]
[1765915089609,15.64129211,2947.0,2946.9,1.522]
[1765915089810,1.92329211,2947.0,2946.9,1.522]
[1765915090001,0.00290014,2947.4,2947.3,1.522]
[1765915090002,0.54390014,2947.4,2947.3,1.522]
[1765915090306,16.44690014,2947.4,2947.3,1.522]
[1765915090499,16.44690014,2947.4,2947.3,0.7553]
[1765915091211,0.2705,2947.1,2947.0,1.9979]
[1765915092712,1.65279211,2947.2,2947.1,1.522]
[1765915093413,1.65248846,2947.2,2947.1,1.522]
[1765915095917,1.92298846,2947.2,2947.1,1.522]
[1765915097416,1.65248846,2947.2,2947.1,1.522]
[1765915099814,1.38198846,2947.2,2947.1,1.522]
[1765915100012,17.28298846,2947.3,2947.2,1.522]
[1765915100613,17.55348846,2947.3,2947.2,1.522]
[1765915101116,17.82398846,2947.3,2947.2,1.522]
[1765915101815,17.82398846,2947.3,2947.2,0.7553]
[1765915102017,17.82398846,2947.3,2947.2,1.522]
[1765915103519,17.82398846,2947.3,2947.2,0.7553]
[1765915103820,0.541,2947.1,2947.0,1.9979]
[1765915104123,1.92298846,2947.1,2947.0,1.9979]
[1765915105020,1.92298846,2947.1,2947.0,0.4759]
[1765915105925,1.92298846,2947.1,2947.0,1.2312]
[1765915106219,1.92298846,2947.1,2947.0,1.9979]
[1765915106422,1.65248846,2947.1,2947.0,1.9979]
[1765915107223,1.82216846,2947.3,2947.2,1.522]
[1765915107415,17.72116846,2947.3,2947.2,1.522]
[1765915108221,17.99166846,2947.3,2947.2,1.522]
[1765915108721,2.09266846,2947.3,2947.2,1.522]
[1765915109926,0.71068,2947.3,2947.2,1.522]
[1765915110118,2.09266846,2947.3,2947.2,1.522]
[1765915110320,2.09266846,2947.3,2947.2,0.7553]
[1765915110629,0.541,2947.1,2947.0,1.9979]
[1765915110819,1.65248846,2947.1,2947.0,1.9979]
[1765915112525,2.09266846,2947.3,2947.2,1.522]
[1765915113029,2.09269104,2947.3,2947.2,1.522]
[1765915113828,1.82219104,2947.3,2947.2,1.522]
[1765915114125,16.33718,2947.3,2947.2,1.522]
[1765915114327,0.44018,2947.3,2947.2,1.522]
[1765915116125,0.5394,2947.1,2947.0,1.9558]
[1765915116331,1.92141104,2947.1,2947.0,0.4759]
[1765915116631,1.92141104,2947.1,2947.0,1.2213]
[1765915116832,1.92141104,2947.1,2946.6,0.74939337]
[1765915116833,0.5394,2946.7,2946.6,0.74939337]
[1765915117029,1.92141104,2946.7,2946.6,1.48389337]
[1765915117328,2.51270215,2947.3,2947.2,1.4799]
[1765915117530,17.54771104,2947.3,2947.2,1.4799]
[1765915117836,17.54771104,2947.3,2947.0,0.4583]
[1765915117837,0.5394,2947.1,2947.0,0.4583]
[1765915118125,0.5394,2946.7,2946.6,0.74939337]
[1765915118329,1.92141104,2946.7,2946.6,0.00399337]
[1765915118535,1.92141104,2946.7,2946.6,0.74939337]
[1765915118725,1.92141104,2946.7,2946.6,1.48389337]
[1765915118925,0.16971,2946.8,2946.7,1.4799]
[1765915119128,0.43941,2946.8,2946.7,1.4799]
[1765915119329,0.70911,2946.8,2946.7,1.4799]
[1765915120439,15.896,2946.9,2946.8,1.4799]
[1765915120635,0.71198014,2947.4,2947.3,1.4799]
[1765915120834,13.71498014,2947.4,2947.3,0.7454]
[1765915121036,41.51198014,2947.4,2947.3,0.7454]
[1765915121235,57.40798014,2947.4,2947.3,1.4799]
[1765915121435,0.5394,2947.1,2947.0,1.9382]
[1765915121733,0.2697,2947.1,2947.0,1.9382]
[1765915121929,1.65171104,2947.1,2947.0,1.9382]